{"text_format":"3","workbook":"xlsx","n_sheets":2,"sheets":["Duomenys apie kandidatą","Kandidato duomenų palyginimas"],"not_rendered":{"defined_names":4},"read":"whole","date_system":"1900"}

{"sheet":"Duomenys apie kandidatą","index":0,"n_rows":2,"n_cols":13,"rows_kept":2,"merged":[[0,0,0,3]]}
["Duomenys apie kandidatą"]
["Pavardė","Vardas","M. I.","Priimti pareigoms","Prašymo statusas","Pašto adresas","Namų telefono numeris","Kitas telefono numeris","El. pašto adresas","Prašymo originalas","Reziumė gavimo data","Personalo atrankos vadovo vardas","Personalo atrankos vadovo pastabos"]

{"sheet":"Kandidato duomenų palyginimas","index":1,"n_rows":59,"n_cols":12,"rows_kept":59,"merged":[[0,0,0,3]]}
["Kandidato duomenų palyginimas"]
["Pavardė","Vardas","M. I.","Priimti pareigoms","Dabartinis darbdavys","Dabartinės pareigos","Išsilavinimas","Dabartinės vizos statusas","Atitinkama patirtis","Atitinkama kvalifikacija arba patirtis","Personalo atrankos vadovo vardas","Personalo atrankos vadovo pastabos"]
[{"$f":"IF('Duomenys apie kandidatą'!A3=\"\",\"\",'Duomenys apie kandidatą'!A3)","v":""},{"$f":"IF('Duomenys apie kandidatą'!B3=\"\",\"\",'Duomenys apie kandidatą'!B3)","v":""},{"$f":"IF('Duomenys apie kandidatą'!C3=\"\",\"\",'Duomenys apie kandidatą'!C3)","v":""},{"$f":"IF('Duomenys apie kandidatą'!D3=\"\",\"\",'Duomenys apie kandidatą'!D3)","v":""},{"$nulls":6},{"$f":"IF('Duomenys apie kandidatą'!L3=\"\",\"\",'Duomenys apie kandidatą'!L3)","v":""},{"$f":"IF('Duomenys apie kandidatą'!M3=\"\",\"\",'Duomenys apie kandidatą'!M3)","v":""}]
[{"$f":"IF('Duomenys apie kandidatą'!A4=\"\",\"\",'Duomenys apie kandidatą'!A4)","v":""},{"$f":"IF('Duomenys apie kandidatą'!B4=\"\",\"\",'Duomenys apie kandidatą'!B4)","v":""},{"$f":"IF('Duomenys apie kandidatą'!C4=\"\",\"\",'Duomenys apie kandidatą'!C4)","v":""},{"$f":"IF('Duomenys apie kandidatą'!D4=\"\",\"\",'Duomenys apie kandidatą'!D4)","v":""},{"$nulls":6},{"$f":"IF('Duomenys apie kandidatą'!L4=\"\",\"\",'Duomenys apie kandidatą'!L4)","v":""},{"$f":"IF('Duomenys apie kandidatą'!M4=\"\",\"\",'Duomenys apie kandidatą'!M4)","v":""}]
[{"$f":"IF('Duomenys apie kandidatą'!A5=\"\",\"\",'Duomenys apie kandidatą'!A5)","v":""},{"$f":"IF('Duomenys apie kandidatą'!B5=\"\",\"\",'Duomenys apie kandidatą'!B5)","v":""},{"$f":"IF('Duomenys apie kandidatą'!C5=\"\",\"\",'Duomenys apie kandidatą'!C5)","v":""},{"$f":"IF('Duomenys apie kandidatą'!D5=\"\",\"\",'Duomenys apie kandidatą'!D5)","v":""},{"$nulls":6},{"$f":"IF('Duomenys apie kandidatą'!L5=\"\",\"\",'Duomenys apie kandidatą'!L5)","v":""},{"$f":"IF('Duomenys apie kandidatą'!M5=\"\",\"\",'Duomenys apie kandidatą'!M5)","v":""}]
[{"$f":"IF('Duomenys apie kandidatą'!A6=\"\",\"\",'Duomenys apie kandidatą'!A6)","v":""},{"$f":"IF('Duomenys apie kandidatą'!B6=\"\",\"\",'Duomenys apie kandidatą'!B6)","v":""},{"$f":"IF('Duomenys apie kandidatą'!C6=\"\",\"\",'Duomenys apie kandidatą'!C6)","v":""},{"$f":"IF('Duomenys apie kandidatą'!D6=\"\",\"\",'Duomenys apie kandidatą'!D6)","v":""},{"$nulls":6},{"$f":"IF('Duomenys apie kandidatą'!L6=\"\",\"\",'Duomenys apie kandidatą'!L6)","v":""},{"$f":"IF('Duomenys apie kandidatą'!M6=\"\",\"\",'Duomenys apie kandidatą'!M6)","v":""}]
[{"$f":"IF('Duomenys apie kandidatą'!A7=\"\",\"\",'Duomenys apie kandidatą'!A7)","v":""},{"$f":"IF('Duomenys apie kandidatą'!B7=\"\",\"\",'Duomenys apie kandidatą'!B7)","v":""},{"$f":"IF('Duomenys apie kandidatą'!C7=\"\",\"\",'Duomenys apie kandidatą'!C7)","v":""},{"$f":"IF('Duomenys apie kandidatą'!D7=\"\",\"\",'Duomenys apie kandidatą'!D7)","v":""},{"$nulls":6},{"$f":"IF('Duomenys apie kandidatą'!L7=\"\",\"\",'Duomenys apie kandidatą'!L7)","v":""},{"$f":"IF('Duomenys apie kandidatą'!M7=\"\",\"\",'Duomenys apie kandidatą'!M7)","v":""}]
[{"$f":"IF('Duomenys apie kandidatą'!A8=\"\",\"\",'Duomenys apie kandidatą'!A8)","v":""},{"$f":"IF('Duomenys apie kandidatą'!B8=\"\",\"\",'Duomenys apie kandidatą'!B8)","v":""},{"$f":"IF('Duomenys apie kandidatą'!C8=\"\",\"\",'Duomenys apie kandidatą'!C8)","v":""},{"$f":"IF('Duomenys apie kandidatą'!D8=\"\",\"\",'Duomenys apie kandidatą'!D8)","v":""},{"$nulls":6},{"$f":"IF('Duomenys apie kandidatą'!L8=\"\",\"\",'Duomenys apie kandidatą'!L8)","v":""},{"$f":"IF('Duomenys apie kandidatą'!M8=\"\",\"\",'Duomenys apie kandidatą'!M8)","v":""}]
[{"$f":"IF('Duomenys apie kandidatą'!A9=\"\",\"\",'Duomenys apie kandidatą'!A9)","v":""},{"$f":"IF('Duomenys apie kandidatą'!B9=\"\",\"\",'Duomenys apie kandidatą'!B9)","v":""},{"$f":"IF('Duomenys apie kandidatą'!C9=\"\",\"\",'Duomenys apie kandidatą'!C9)","v":""},{"$f":"IF('Duomenys apie kandidatą'!D9=\"\",\"\",'Duomenys apie kandidatą'!D9)","v":""},{"$nulls":6},{"$f":"IF('Duomenys apie kandidatą'!L9=\"\",\"\",'Duomenys apie kandidatą'!L9)","v":""},{"$f":"IF('Duomenys apie kandidatą'!M9=\"\",\"\",'Duomenys apie kandidatą'!M9)","v":""}]
[{"$f":"IF('Duomenys apie kandidatą'!A10=\"\",\"\",'Duomenys apie kandidatą'!A10)","v":""},{"$f":"IF('Duomenys apie kandidatą'!B10=\"\",\"\",'Duomenys apie kandidatą'!B10)","v":""},{"$f":"IF('Duomenys apie kandidatą'!C10=\"\",\"\",'Duomenys apie kandidatą'!C10)","v":""},{"$f":"IF('Duomenys apie kandidatą'!D10=\"\",\"\",'Duomenys apie kandidatą'!D10)","v":""},{"$nulls":6},{"$f":"IF('Duomenys apie kandidatą'!L10=\"\",\"\",'Duomenys apie kandidatą'!L10)","v":""},{"$f":"IF('Duomenys apie kandidatą'!M10=\"\",\"\",'Duomenys apie kandidatą'!M10)","v":""}]
[{"$f":"IF('Duomenys apie kandidatą'!A11=\"\",\"\",'Duomenys apie kandidatą'!A11)","v":""},{"$f":"IF('Duomenys apie kandidatą'!B11=\"\",\"\",'Duomenys apie kandidatą'!B11)","v":""},{"$f":"IF('Duomenys apie kandidatą'!C11=\"\",\"\",'Duomenys apie kandidatą'!C11)","v":""},{"$f":"IF('Duomenys apie kandidatą'!D11=\"\",\"\",'Duomenys apie kandidatą'!D11)","v":""},{"$nulls":6},{"$f":"IF('Duomenys apie kandidatą'!L11=\"\",\"\",'Duomenys apie kandidatą'!L11)","v":""},{"$f":"IF('Duomenys apie kandidatą'!M11=\"\",\"\",'Duomenys apie kandidatą'!M11)","v":""}]
[{"$f":"IF('Duomenys apie kandidatą'!A12=\"\",\"\",'Duomenys apie kandidatą'!A12)","v":""},{"$f":"IF('Duomenys apie kandidatą'!B12=\"\",\"\",'Duomenys apie kandidatą'!B12)","v":""},{"$f":"IF('Duomenys apie kandidatą'!C12=\"\",\"\",'Duomenys apie kandidatą'!C12)","v":""},{"$f":"IF('Duomenys apie kandidatą'!D12=\"\",\"\",'Duomenys apie kandidatą'!D12)","v":""},{"$nulls":6},{"$f":"IF('Duomenys apie kandidatą'!L12=\"\",\"\",'Duomenys apie kandidatą'!L12)","v":""},{"$f":"IF('Duomenys apie kandidatą'!M12=\"\",\"\",'Duomenys apie kandidatą'!M12)","v":""}]
[{"$f":"IF('Duomenys apie kandidatą'!A13=\"\",\"\",'Duomenys apie kandidatą'!A13)","v":""},{"$f":"IF('Duomenys apie kandidatą'!B13=\"\",\"\",'Duomenys apie kandidatą'!B13)","v":""},{"$f":"IF('Duomenys apie kandidatą'!C13=\"\",\"\",'Duomenys apie kandidatą'!C13)","v":""},{"$f":"IF('Duomenys apie kandidatą'!D13=\"\",\"\",'Duomenys apie kandidatą'!D13)","v":""},{"$nulls":6},{"$f":"IF('Duomenys apie kandidatą'!L13=\"\",\"\",'Duomenys apie kandidatą'!L13)","v":""},{"$f":"IF('Duomenys apie kandidatą'!M13=\"\",\"\",'Duomenys apie kandidatą'!M13)","v":""}]
[{"$f":"IF('Duomenys apie kandidatą'!A14=\"\",\"\",'Duomenys apie kandidatą'!A14)","v":""},{"$f":"IF('Duomenys apie kandidatą'!B14=\"\",\"\",'Duomenys apie kandidatą'!B14)","v":""},{"$f":"IF('Duomenys apie kandidatą'!C14=\"\",\"\",'Duomenys apie kandidatą'!C14)","v":""},{"$f":"IF('Duomenys apie kandidatą'!D14=\"\",\"\",'Duomenys apie kandidatą'!D14)","v":""},{"$nulls":6},{"$f":"IF('Duomenys apie kandidatą'!L14=\"\",\"\",'Duomenys apie kandidatą'!L14)","v":""},{"$f":"IF('Duomenys apie kandidatą'!M14=\"\",\"\",'Duomenys apie kandidatą'!M14)","v":""}]
[{"$f":"IF('Duomenys apie kandidatą'!A15=\"\",\"\",'Duomenys apie kandidatą'!A15)","v":""},{"$f":"IF('Duomenys apie kandidatą'!B15=\"\",\"\",'Duomenys apie kandidatą'!B15)","v":""},{"$f":"IF('Duomenys apie kandidatą'!C15=\"\",\"\",'Duomenys apie kandidatą'!C15)","v":""},{"$f":"IF('Duomenys apie kandidatą'!D15=\"\",\"\",'Duomenys apie kandidatą'!D15)","v":""},{"$nulls":6},{"$f":"IF('Duomenys apie kandidatą'!L15=\"\",\"\",'Duomenys apie kandidatą'!L15)","v":""},{"$f":"IF('Duomenys apie kandidatą'!M15=\"\",\"\",'Duomenys apie kandidatą'!M15)","v":""}]
[{"$f":"IF('Duomenys apie kandidatą'!A16=\"\",\"\",'Duomenys apie kandidatą'!A16)","v":""},{"$f":"IF('Duomenys apie kandidatą'!B16=\"\",\"\",'Duomenys apie kandidatą'!B16)","v":""},{"$f":"IF('Duomenys apie kandidatą'!C16=\"\",\"\",'Duomenys apie kandidatą'!C16)","v":""},{"$f":"IF('Duomenys apie kandidatą'!D16=\"\",\"\",'Duomenys apie kandidatą'!D16)","v":""},{"$nulls":6},{"$f":"IF('Duomenys apie kandidatą'!L16=\"\",\"\",'Duomenys apie kandidatą'!L16)","v":""},{"$f":"IF('Duomenys apie kandidatą'!M16=\"\",\"\",'Duomenys apie kandidatą'!M16)","v":""}]
[{"$f":"IF('Duomenys apie kandidatą'!A17=\"\",\"\",'Duomenys apie kandidatą'!A17)","v":""},{"$f":"IF('Duomenys apie kandidatą'!B17=\"\",\"\",'Duomenys apie kandidatą'!B17)","v":""},{"$f":"IF('Duomenys apie kandidatą'!C17=\"\",\"\",'Duomenys apie kandidatą'!C17)","v":""},{"$f":"IF('Duomenys apie kandidatą'!D17=\"\",\"\",'Duomenys apie kandidatą'!D17)","v":""},{"$nulls":6},{"$f":"IF('Duomenys apie kandidatą'!L17=\"\",\"\",'Duomenys apie kandidatą'!L17)","v":""},{"$f":"IF('Duomenys apie kandidatą'!M17=\"\",\"\",'Duomenys apie kandidatą'!M17)","v":""}]
[{"$f":"IF('Duomenys apie kandidatą'!A18=\"\",\"\",'Duomenys apie kandidatą'!A18)","v":""},{"$f":"IF('Duomenys apie kandidatą'!B18=\"\",\"\",'Duomenys apie kandidatą'!B18)","v":""},{"$f":"IF('Duomenys apie kandidatą'!C18=\"\",\"\",'Duomenys apie kandidatą'!C18)","v":""},{"$f":"IF('Duomenys apie kandidatą'!D18=\"\",\"\",'Duomenys apie kandidatą'!D18)","v":""},{"$nulls":6},{"$f":"IF('Duomenys apie kandidatą'!L18=\"\",\"\",'Duomenys apie kandidatą'!L18)","v":""},{"$f":"IF('Duomenys apie kandidatą'!M18=\"\",\"\",'Duomenys apie kandidatą'!M18)","v":""}]
[{"$f":"IF('Duomenys apie kandidatą'!A19=\"\",\"\",'Duomenys apie kandidatą'!A19)","v":""},{"$f":"IF('Duomenys apie kandidatą'!B19=\"\",\"\",'Duomenys apie kandidatą'!B19)","v":""},{"$f":"IF('Duomenys apie kandidatą'!C19=\"\",\"\",'Duomenys apie kandidatą'!C19)","v":""},{"$f":"IF('Duomenys apie kandidatą'!D19=\"\",\"\",'Duomenys apie kandidatą'!D19)","v":""},{"$nulls":6},{"$f":"IF('Duomenys apie kandidatą'!L19=\"\",\"\",'Duomenys apie kandidatą'!L19)","v":""},{"$f":"IF('Duomenys apie kandidatą'!M19=\"\",\"\",'Duomenys apie kandidatą'!M19)","v":""}]
[{"$f":"IF('Duomenys apie kandidatą'!A20=\"\",\"\",'Duomenys apie kandidatą'!A20)","v":""},{"$f":"IF('Duomenys apie kandidatą'!B20=\"\",\"\",'Duomenys apie kandidatą'!B20)","v":""},{"$f":"IF('Duomenys apie kandidatą'!C20=\"\",\"\",'Duomenys apie kandidatą'!C20)","v":""},{"$f":"IF('Duomenys apie kandidatą'!D20=\"\",\"\",'Duomenys apie kandidatą'!D20)","v":""},{"$nulls":6},{"$f":"IF('Duomenys apie kandidatą'!L20=\"\",\"\",'Duomenys apie kandidatą'!L20)","v":""},{"$f":"IF('Duomenys apie kandidatą'!M20=\"\",\"\",'Duomenys apie kandidatą'!M20)","v":""}]
[{"$f":"IF('Duomenys apie kandidatą'!A21=\"\",\"\",'Duomenys apie kandidatą'!A21)","v":""},{"$f":"IF('Duomenys apie kandidatą'!B21=\"\",\"\",'Duomenys apie kandidatą'!B21)","v":""},{"$f":"IF('Duomenys apie kandidatą'!C21=\"\",\"\",'Duomenys apie kandidatą'!C21)","v":""},{"$f":"IF('Duomenys apie kandidatą'!D21=\"\",\"\",'Duomenys apie kandidatą'!D21)","v":""},{"$nulls":6},{"$f":"IF('Duomenys apie kandidatą'!L21=\"\",\"\",'Duomenys apie kandidatą'!L21)","v":""},{"$f":"IF('Duomenys apie kandidatą'!M21=\"\",\"\",'Duomenys apie kandidatą'!M21)","v":""}]
[{"$f":"IF('Duomenys apie kandidatą'!A22=\"\",\"\",'Duomenys apie kandidatą'!A22)","v":""},{"$f":"IF('Duomenys apie kandidatą'!B22=\"\",\"\",'Duomenys apie kandidatą'!B22)","v":""},{"$f":"IF('Duomenys apie kandidatą'!C22=\"\",\"\",'Duomenys apie kandidatą'!C22)","v":""},{"$f":"IF('Duomenys apie kandidatą'!D22=\"\",\"\",'Duomenys apie kandidatą'!D22)","v":""},{"$nulls":6},{"$f":"IF('Duomenys apie kandidatą'!L22=\"\",\"\",'Duomenys apie kandidatą'!L22)","v":""},{"$f":"IF('Duomenys apie kandidatą'!M22=\"\",\"\",'Duomenys apie kandidatą'!M22)","v":""}]
[{"$f":"IF('Duomenys apie kandidatą'!A23=\"\",\"\",'Duomenys apie kandidatą'!A23)","v":""},{"$f":"IF('Duomenys apie kandidatą'!B23=\"\",\"\",'Duomenys apie kandidatą'!B23)","v":""},{"$f":"IF('Duomenys apie kandidatą'!C23=\"\",\"\",'Duomenys apie kandidatą'!C23)","v":""},{"$f":"IF('Duomenys apie kandidatą'!D23=\"\",\"\",'Duomenys apie kandidatą'!D23)","v":""},{"$nulls":6},{"$f":"IF('Duomenys apie kandidatą'!L23=\"\",\"\",'Duomenys apie kandidatą'!L23)","v":""},{"$f":"IF('Duomenys apie kandidatą'!M23=\"\",\"\",'Duomenys apie kandidatą'!M23)","v":""}]
[{"$f":"IF('Duomenys apie kandidatą'!A24=\"\",\"\",'Duomenys apie kandidatą'!A24)","v":""},{"$f":"IF('Duomenys apie kandidatą'!B24=\"\",\"\",'Duomenys apie kandidatą'!B24)","v":""},{"$f":"IF('Duomenys apie kandidatą'!C24=\"\",\"\",'Duomenys apie kandidatą'!C24)","v":""},{"$f":"IF('Duomenys apie kandidatą'!D24=\"\",\"\",'Duomenys apie kandidatą'!D24)","v":""},{"$nulls":6},{"$f":"IF('Duomenys apie kandidatą'!L24=\"\",\"\",'Duomenys apie kandidatą'!L24)","v":""},{"$f":"IF('Duomenys apie kandidatą'!M24=\"\",\"\",'Duomenys apie kandidatą'!M24)","v":""}]
[{"$f":"IF('Duomenys apie kandidatą'!A25=\"\",\"\",'Duomenys apie kandidatą'!A25)","v":""},{"$f":"IF('Duomenys apie kandidatą'!B25=\"\",\"\",'Duomenys apie kandidatą'!B25)","v":""},{"$f":"IF('Duomenys apie kandidatą'!C25=\"\",\"\",'Duomenys apie kandidatą'!C25)","v":""},{"$f":"IF('Duomenys apie kandidatą'!D25=\"\",\"\",'Duomenys apie kandidatą'!D25)","v":""},{"$nulls":6},{"$f":"IF('Duomenys apie kandidatą'!L25=\"\",\"\",'Duomenys apie kandidatą'!L25)","v":""},{"$f":"IF('Duomenys apie kandidatą'!M25=\"\",\"\",'Duomenys apie kandidatą'!M25)","v":""}]
[{"$f":"IF('Duomenys apie kandidatą'!A26=\"\",\"\",'Duomenys apie kandidatą'!A26)","v":""},{"$f":"IF('Duomenys apie kandidatą'!B26=\"\",\"\",'Duomenys apie kandidatą'!B26)","v":""},{"$f":"IF('Duomenys apie kandidatą'!C26=\"\",\"\",'Duomenys apie kandidatą'!C26)","v":""},{"$f":"IF('Duomenys apie kandidatą'!D26=\"\",\"\",'Duomenys apie kandidatą'!D26)","v":""},{"$nulls":6},{"$f":"IF('Duomenys apie kandidatą'!L26=\"\",\"\",'Duomenys apie kandidatą'!L26)","v":""},{"$f":"IF('Duomenys apie kandidatą'!M26=\"\",\"\",'Duomenys apie kandidatą'!M26)","v":""}]
[{"$f":"IF('Duomenys apie kandidatą'!A27=\"\",\"\",'Duomenys apie kandidatą'!A27)","v":""},{"$f":"IF('Duomenys apie kandidatą'!B27=\"\",\"\",'Duomenys apie kandidatą'!B27)","v":""},{"$f":"IF('Duomenys apie kandidatą'!C27=\"\",\"\",'Duomenys apie kandidatą'!C27)","v":""},{"$f":"IF('Duomenys apie kandidatą'!D27=\"\",\"\",'Duomenys apie kandidatą'!D27)","v":""},{"$nulls":6},{"$f":"IF('Duomenys apie kandidatą'!L27=\"\",\"\",'Duomenys apie kandidatą'!L27)","v":""},{"$f":"IF('Duomenys apie kandidatą'!M27=\"\",\"\",'Duomenys apie kandidatą'!M27)","v":""}]
[{"$f":"IF('Duomenys apie kandidatą'!A28=\"\",\"\",'Duomenys apie kandidatą'!A28)","v":""},{"$f":"IF('Duomenys apie kandidatą'!B28=\"\",\"\",'Duomenys apie kandidatą'!B28)","v":""},{"$f":"IF('Duomenys apie kandidatą'!C28=\"\",\"\",'Duomenys apie kandidatą'!C28)","v":""},{"$f":"IF('Duomenys apie kandidatą'!D28=\"\",\"\",'Duomenys apie kandidatą'!D28)","v":""},{"$nulls":6},{"$f":"IF('Duomenys apie kandidatą'!L28=\"\",\"\",'Duomenys apie kandidatą'!L28)","v":""},{"$f":"IF('Duomenys apie kandidatą'!M28=\"\",\"\",'Duomenys apie kandidatą'!M28)","v":""}]
[{"$f":"IF('Duomenys apie kandidatą'!A29=\"\",\"\",'Duomenys apie kandidatą'!A29)","v":""},{"$f":"IF('Duomenys apie kandidatą'!B29=\"\",\"\",'Duomenys apie kandidatą'!B29)","v":""},{"$f":"IF('Duomenys apie kandidatą'!C29=\"\",\"\",'Duomenys apie kandidatą'!C29)","v":""},{"$f":"IF('Duomenys apie kandidatą'!D29=\"\",\"\",'Duomenys apie kandidatą'!D29)","v":""},{"$nulls":6},{"$f":"IF('Duomenys apie kandidatą'!L29=\"\",\"\",'Duomenys apie kandidatą'!L29)","v":""},{"$f":"IF('Duomenys apie kandidatą'!M29=\"\",\"\",'Duomenys apie kandidatą'!M29)","v":""}]
[{"$f":"IF('Duomenys apie kandidatą'!A30=\"\",\"\",'Duomenys apie kandidatą'!A30)","v":""},{"$f":"IF('Duomenys apie kandidatą'!B30=\"\",\"\",'Duomenys apie kandidatą'!B30)","v":""},{"$f":"IF('Duomenys apie kandidatą'!C30=\"\",\"\",'Duomenys apie kandidatą'!C30)","v":""},{"$f":"IF('Duomenys apie kandidatą'!D30=\"\",\"\",'Duomenys apie kandidatą'!D30)","v":""},{"$nulls":6},{"$f":"IF('Duomenys apie kandidatą'!L30=\"\",\"\",'Duomenys apie kandidatą'!L30)","v":""},{"$f":"IF('Duomenys apie kandidatą'!M30=\"\",\"\",'Duomenys apie kandidatą'!M30)","v":""}]
[{"$f":"IF('Duomenys apie kandidatą'!A31=\"\",\"\",'Duomenys apie kandidatą'!A31)","v":""},{"$f":"IF('Duomenys apie kandidatą'!B31=\"\",\"\",'Duomenys apie kandidatą'!B31)","v":""},{"$f":"IF('Duomenys apie kandidatą'!C31=\"\",\"\",'Duomenys apie kandidatą'!C31)","v":""},{"$f":"IF('Duomenys apie kandidatą'!D31=\"\",\"\",'Duomenys apie kandidatą'!D31)","v":""},{"$nulls":6},{"$f":"IF('Duomenys apie kandidatą'!L31=\"\",\"\",'Duomenys apie kandidatą'!L31)","v":""},{"$f":"IF('Duomenys apie kandidatą'!M31=\"\",\"\",'Duomenys apie kandidatą'!M31)","v":""}]
[{"$f":"IF('Duomenys apie kandidatą'!A32=\"\",\"\",'Duomenys apie kandidatą'!A32)","v":""},{"$f":"IF('Duomenys apie kandidatą'!B32=\"\",\"\",'Duomenys apie kandidatą'!B32)","v":""},{"$f":"IF('Duomenys apie kandidatą'!C32=\"\",\"\",'Duomenys apie kandidatą'!C32)","v":""},{"$f":"IF('Duomenys apie kandidatą'!D32=\"\",\"\",'Duomenys apie kandidatą'!D32)","v":""},{"$nulls":6},{"$f":"IF('Duomenys apie kandidatą'!L32=\"\",\"\",'Duomenys apie kandidatą'!L32)","v":""},{"$f":"IF('Duomenys apie kandidatą'!M32=\"\",\"\",'Duomenys apie kandidatą'!M32)","v":""}]
[{"$f":"IF('Duomenys apie kandidatą'!A33=\"\",\"\",'Duomenys apie kandidatą'!A33)","v":""},{"$f":"IF('Duomenys apie kandidatą'!B33=\"\",\"\",'Duomenys apie kandidatą'!B33)","v":""},{"$f":"IF('Duomenys apie kandidatą'!C33=\"\",\"\",'Duomenys apie kandidatą'!C33)","v":""},{"$f":"IF('Duomenys apie kandidatą'!D33=\"\",\"\",'Duomenys apie kandidatą'!D33)","v":""},{"$nulls":6},{"$f":"IF('Duomenys apie kandidatą'!L33=\"\",\"\",'Duomenys apie kandidatą'!L33)","v":""},{"$f":"IF('Duomenys apie kandidatą'!M33=\"\",\"\",'Duomenys apie kandidatą'!M33)","v":""}]
[{"$f":"IF('Duomenys apie kandidatą'!A34=\"\",\"\",'Duomenys apie kandidatą'!A34)","v":""},{"$f":"IF('Duomenys apie kandidatą'!B34=\"\",\"\",'Duomenys apie kandidatą'!B34)","v":""},{"$f":"IF('Duomenys apie kandidatą'!C34=\"\",\"\",'Duomenys apie kandidatą'!C34)","v":""},{"$f":"IF('Duomenys apie kandidatą'!D34=\"\",\"\",'Duomenys apie kandidatą'!D34)","v":""},{"$nulls":6},{"$f":"IF('Duomenys apie kandidatą'!L34=\"\",\"\",'Duomenys apie kandidatą'!L34)","v":""},{"$f":"IF('Duomenys apie kandidatą'!M34=\"\",\"\",'Duomenys apie kandidatą'!M34)","v":""}]
[{"$f":"IF('Duomenys apie kandidatą'!A35=\"\",\"\",'Duomenys apie kandidatą'!A35)","v":""},{"$f":"IF('Duomenys apie kandidatą'!B35=\"\",\"\",'Duomenys apie kandidatą'!B35)","v":""},{"$f":"IF('Duomenys apie kandidatą'!C35=\"\",\"\",'Duomenys apie kandidatą'!C35)","v":""},{"$f":"IF('Duomenys apie kandidatą'!D35=\"\",\"\",'Duomenys apie kandidatą'!D35)","v":""},{"$nulls":6},{"$f":"IF('Duomenys apie kandidatą'!L35=\"\",\"\",'Duomenys apie kandidatą'!L35)","v":""},{"$f":"IF('Duomenys apie kandidatą'!M35=\"\",\"\",'Duomenys apie kandidatą'!M35)","v":""}]
[{"$f":"IF('Duomenys apie kandidatą'!A36=\"\",\"\",'Duomenys apie kandidatą'!A36)","v":""},{"$f":"IF('Duomenys apie kandidatą'!B36=\"\",\"\",'Duomenys apie kandidatą'!B36)","v":""},{"$f":"IF('Duomenys apie kandidatą'!C36=\"\",\"\",'Duomenys apie kandidatą'!C36)","v":""},{"$f":"IF('Duomenys apie kandidatą'!D36=\"\",\"\",'Duomenys apie kandidatą'!D36)","v":""},{"$nulls":6},{"$f":"IF('Duomenys apie kandidatą'!L36=\"\",\"\",'Duomenys apie kandidatą'!L36)","v":""},{"$f":"IF('Duomenys apie kandidatą'!M36=\"\",\"\",'Duomenys apie kandidatą'!M36)","v":""}]
[{"$f":"IF('Duomenys apie kandidatą'!A37=\"\",\"\",'Duomenys apie kandidatą'!A37)","v":""},{"$f":"IF('Duomenys apie kandidatą'!B37=\"\",\"\",'Duomenys apie kandidatą'!B37)","v":""},{"$f":"IF('Duomenys apie kandidatą'!C37=\"\",\"\",'Duomenys apie kandidatą'!C37)","v":""},{"$f":"IF('Duomenys apie kandidatą'!D37=\"\",\"\",'Duomenys apie kandidatą'!D37)","v":""},{"$nulls":6},{"$f":"IF('Duomenys apie kandidatą'!L37=\"\",\"\",'Duomenys apie kandidatą'!L37)","v":""},{"$f":"IF('Duomenys apie kandidatą'!M37=\"\",\"\",'Duomenys apie kandidatą'!M37)","v":""}]
[{"$f":"IF('Duomenys apie kandidatą'!A38=\"\",\"\",'Duomenys apie kandidatą'!A38)","v":""},{"$f":"IF('Duomenys apie kandidatą'!B38=\"\",\"\",'Duomenys apie kandidatą'!B38)","v":""},{"$f":"IF('Duomenys apie kandidatą'!C38=\"\",\"\",'Duomenys apie kandidatą'!C38)","v":""},{"$f":"IF('Duomenys apie kandidatą'!D38=\"\",\"\",'Duomenys apie kandidatą'!D38)","v":""},{"$nulls":6},{"$f":"IF('Duomenys apie kandidatą'!L38=\"\",\"\",'Duomenys apie kandidatą'!L38)","v":""},{"$f":"IF('Duomenys apie kandidatą'!M38=\"\",\"\",'Duomenys apie kandidatą'!M38)","v":""}]
[{"$f":"IF('Duomenys apie kandidatą'!A39=\"\",\"\",'Duomenys apie kandidatą'!A39)","v":""},{"$f":"IF('Duomenys apie kandidatą'!B39=\"\",\"\",'Duomenys apie kandidatą'!B39)","v":""},{"$f":"IF('Duomenys apie kandidatą'!C39=\"\",\"\",'Duomenys apie kandidatą'!C39)","v":""},{"$f":"IF('Duomenys apie kandidatą'!D39=\"\",\"\",'Duomenys apie kandidatą'!D39)","v":""},{"$nulls":6},{"$f":"IF('Duomenys apie kandidatą'!L39=\"\",\"\",'Duomenys apie kandidatą'!L39)","v":""},{"$f":"IF('Duomenys apie kandidatą'!M39=\"\",\"\",'Duomenys apie kandidatą'!M39)","v":""}]
[{"$f":"IF('Duomenys apie kandidatą'!A40=\"\",\"\",'Duomenys apie kandidatą'!A40)","v":""},{"$f":"IF('Duomenys apie kandidatą'!B40=\"\",\"\",'Duomenys apie kandidatą'!B40)","v":""},{"$f":"IF('Duomenys apie kandidatą'!C40=\"\",\"\",'Duomenys apie kandidatą'!C40)","v":""},{"$f":"IF('Duomenys apie kandidatą'!D40=\"\",\"\",'Duomenys apie kandidatą'!D40)","v":""},{"$nulls":6},{"$f":"IF('Duomenys apie kandidatą'!L40=\"\",\"\",'Duomenys apie kandidatą'!L40)","v":""},{"$f":"IF('Duomenys apie kandidatą'!M40=\"\",\"\",'Duomenys apie kandidatą'!M40)","v":""}]
[{"$f":"IF('Duomenys apie kandidatą'!A41=\"\",\"\",'Duomenys apie kandidatą'!A41)","v":""},{"$f":"IF('Duomenys apie kandidatą'!B41=\"\",\"\",'Duomenys apie kandidatą'!B41)","v":""},{"$f":"IF('Duomenys apie kandidatą'!C41=\"\",\"\",'Duomenys apie kandidatą'!C41)","v":""},{"$f":"IF('Duomenys apie kandidatą'!D41=\"\",\"\",'Duomenys apie kandidatą'!D41)","v":""},{"$nulls":6},{"$f":"IF('Duomenys apie kandidatą'!L41=\"\",\"\",'Duomenys apie kandidatą'!L41)","v":""},{"$f":"IF('Duomenys apie kandidatą'!M41=\"\",\"\",'Duomenys apie kandidatą'!M41)","v":""}]
[{"$f":"IF('Duomenys apie kandidatą'!A42=\"\",\"\",'Duomenys apie kandidatą'!A42)","v":""},{"$f":"IF('Duomenys apie kandidatą'!B42=\"\",\"\",'Duomenys apie kandidatą'!B42)","v":""},{"$f":"IF('Duomenys apie kandidatą'!C42=\"\",\"\",'Duomenys apie kandidatą'!C42)","v":""},{"$f":"IF('Duomenys apie kandidatą'!D42=\"\",\"\",'Duomenys apie kandidatą'!D42)","v":""},{"$nulls":6},{"$f":"IF('Duomenys apie kandidatą'!L42=\"\",\"\",'Duomenys apie kandidatą'!L42)","v":""},{"$f":"IF('Duomenys apie kandidatą'!M42=\"\",\"\",'Duomenys apie kandidatą'!M42)","v":""}]
[{"$f":"IF('Duomenys apie kandidatą'!A43=\"\",\"\",'Duomenys apie kandidatą'!A43)","v":""},{"$f":"IF('Duomenys apie kandidatą'!B43=\"\",\"\",'Duomenys apie kandidatą'!B43)","v":""},{"$f":"IF('Duomenys apie kandidatą'!C43=\"\",\"\",'Duomenys apie kandidatą'!C43)","v":""},{"$f":"IF('Duomenys apie kandidatą'!D43=\"\",\"\",'Duomenys apie kandidatą'!D43)","v":""},{"$nulls":6},{"$f":"IF('Duomenys apie kandidatą'!L43=\"\",\"\",'Duomenys apie kandidatą'!L43)","v":""},{"$f":"IF('Duomenys apie kandidatą'!M43=\"\",\"\",'Duomenys apie kandidatą'!M43)","v":""}]
[{"$f":"IF('Duomenys apie kandidatą'!A44=\"\",\"\",'Duomenys apie kandidatą'!A44)","v":""},{"$f":"IF('Duomenys apie kandidatą'!B44=\"\",\"\",'Duomenys apie kandidatą'!B44)","v":""},{"$f":"IF('Duomenys apie kandidatą'!C44=\"\",\"\",'Duomenys apie kandidatą'!C44)","v":""},{"$f":"IF('Duomenys apie kandidatą'!D44=\"\",\"\",'Duomenys apie kandidatą'!D44)","v":""},{"$nulls":6},{"$f":"IF('Duomenys apie kandidatą'!L44=\"\",\"\",'Duomenys apie kandidatą'!L44)","v":""},{"$f":"IF('Duomenys apie kandidatą'!M44=\"\",\"\",'Duomenys apie kandidatą'!M44)","v":""}]
[{"$f":"IF('Duomenys apie kandidatą'!A45=\"\",\"\",'Duomenys apie kandidatą'!A45)","v":""},{"$f":"IF('Duomenys apie kandidatą'!B45=\"\",\"\",'Duomenys apie kandidatą'!B45)","v":""},{"$f":"IF('Duomenys apie kandidatą'!C45=\"\",\"\",'Duomenys apie kandidatą'!C45)","v":""},{"$f":"IF('Duomenys apie kandidatą'!D45=\"\",\"\",'Duomenys apie kandidatą'!D45)","v":""},{"$nulls":6},{"$f":"IF('Duomenys apie kandidatą'!L45=\"\",\"\",'Duomenys apie kandidatą'!L45)","v":""},{"$f":"IF('Duomenys apie kandidatą'!M45=\"\",\"\",'Duomenys apie kandidatą'!M45)","v":""}]
[{"$f":"IF('Duomenys apie kandidatą'!A46=\"\",\"\",'Duomenys apie kandidatą'!A46)","v":""},{"$f":"IF('Duomenys apie kandidatą'!B46=\"\",\"\",'Duomenys apie kandidatą'!B46)","v":""},{"$f":"IF('Duomenys apie kandidatą'!C46=\"\",\"\",'Duomenys apie kandidatą'!C46)","v":""},{"$f":"IF('Duomenys apie kandidatą'!D46=\"\",\"\",'Duomenys apie kandidatą'!D46)","v":""},{"$nulls":6},{"$f":"IF('Duomenys apie kandidatą'!L46=\"\",\"\",'Duomenys apie kandidatą'!L46)","v":""},{"$f":"IF('Duomenys apie kandidatą'!M46=\"\",\"\",'Duomenys apie kandidatą'!M46)","v":""}]
[{"$f":"IF('Duomenys apie kandidatą'!A47=\"\",\"\",'Duomenys apie kandidatą'!A47)","v":""},{"$f":"IF('Duomenys apie kandidatą'!B47=\"\",\"\",'Duomenys apie kandidatą'!B47)","v":""},{"$f":"IF('Duomenys apie kandidatą'!C47=\"\",\"\",'Duomenys apie kandidatą'!C47)","v":""},{"$f":"IF('Duomenys apie kandidatą'!D47=\"\",\"\",'Duomenys apie kandidatą'!D47)","v":""},{"$nulls":6},{"$f":"IF('Duomenys apie kandidatą'!L47=\"\",\"\",'Duomenys apie kandidatą'!L47)","v":""},{"$f":"IF('Duomenys apie kandidatą'!M47=\"\",\"\",'Duomenys apie kandidatą'!M47)","v":""}]
[{"$f":"IF('Duomenys apie kandidatą'!A48=\"\",\"\",'Duomenys apie kandidatą'!A48)","v":""},{"$f":"IF('Duomenys apie kandidatą'!B48=\"\",\"\",'Duomenys apie kandidatą'!B48)","v":""},{"$f":"IF('Duomenys apie kandidatą'!C48=\"\",\"\",'Duomenys apie kandidatą'!C48)","v":""},{"$f":"IF('Duomenys apie kandidatą'!D48=\"\",\"\",'Duomenys apie kandidatą'!D48)","v":""},{"$nulls":6},{"$f":"IF('Duomenys apie kandidatą'!L48=\"\",\"\",'Duomenys apie kandidatą'!L48)","v":""},{"$f":"IF('Duomenys apie kandidatą'!M48=\"\",\"\",'Duomenys apie kandidatą'!M48)","v":""}]
[{"$f":"IF('Duomenys apie kandidatą'!A49=\"\",\"\",'Duomenys apie kandidatą'!A49)","v":""},{"$f":"IF('Duomenys apie kandidatą'!B49=\"\",\"\",'Duomenys apie kandidatą'!B49)","v":""},{"$f":"IF('Duomenys apie kandidatą'!C49=\"\",\"\",'Duomenys apie kandidatą'!C49)","v":""},{"$f":"IF('Duomenys apie kandidatą'!D49=\"\",\"\",'Duomenys apie kandidatą'!D49)","v":""},{"$nulls":6},{"$f":"IF('Duomenys apie kandidatą'!L49=\"\",\"\",'Duomenys apie kandidatą'!L49)","v":""},{"$f":"IF('Duomenys apie kandidatą'!M49=\"\",\"\",'Duomenys apie kandidatą'!M49)","v":""}]
[{"$f":"IF('Duomenys apie kandidatą'!A50=\"\",\"\",'Duomenys apie kandidatą'!A50)","v":""},{"$f":"IF('Duomenys apie kandidatą'!B50=\"\",\"\",'Duomenys apie kandidatą'!B50)","v":""},{"$f":"IF('Duomenys apie kandidatą'!C50=\"\",\"\",'Duomenys apie kandidatą'!C50)","v":""},{"$f":"IF('Duomenys apie kandidatą'!D50=\"\",\"\",'Duomenys apie kandidatą'!D50)","v":""},{"$nulls":6},{"$f":"IF('Duomenys apie kandidatą'!L50=\"\",\"\",'Duomenys apie kandidatą'!L50)","v":""},{"$f":"IF('Duomenys apie kandidatą'!M50=\"\",\"\",'Duomenys apie kandidatą'!M50)","v":""}]
[{"$f":"IF('Duomenys apie kandidatą'!A51=\"\",\"\",'Duomenys apie kandidatą'!A51)","v":""},{"$f":"IF('Duomenys apie kandidatą'!B51=\"\",\"\",'Duomenys apie kandidatą'!B51)","v":""},{"$f":"IF('Duomenys apie kandidatą'!C51=\"\",\"\",'Duomenys apie kandidatą'!C51)","v":""},{"$f":"IF('Duomenys apie kandidatą'!D51=\"\",\"\",'Duomenys apie kandidatą'!D51)","v":""},{"$nulls":6},{"$f":"IF('Duomenys apie kandidatą'!L51=\"\",\"\",'Duomenys apie kandidatą'!L51)","v":""},{"$f":"IF('Duomenys apie kandidatą'!M51=\"\",\"\",'Duomenys apie kandidatą'!M51)","v":""}]
[{"$f":"IF('Duomenys apie kandidatą'!A52=\"\",\"\",'Duomenys apie kandidatą'!A52)","v":""},{"$f":"IF('Duomenys apie kandidatą'!B52=\"\",\"\",'Duomenys apie kandidatą'!B52)","v":""},{"$f":"IF('Duomenys apie kandidatą'!C52=\"\",\"\",'Duomenys apie kandidatą'!C52)","v":""},{"$f":"IF('Duomenys apie kandidatą'!D52=\"\",\"\",'Duomenys apie kandidatą'!D52)","v":""},{"$nulls":6},{"$f":"IF('Duomenys apie kandidatą'!L52=\"\",\"\",'Duomenys apie kandidatą'!L52)","v":""},{"$f":"IF('Duomenys apie kandidatą'!M52=\"\",\"\",'Duomenys apie kandidatą'!M52)","v":""}]
[{"$f":"IF('Duomenys apie kandidatą'!A53=\"\",\"\",'Duomenys apie kandidatą'!A53)","v":""},{"$f":"IF('Duomenys apie kandidatą'!B53=\"\",\"\",'Duomenys apie kandidatą'!B53)","v":""},{"$f":"IF('Duomenys apie kandidatą'!C53=\"\",\"\",'Duomenys apie kandidatą'!C53)","v":""},{"$f":"IF('Duomenys apie kandidatą'!D53=\"\",\"\",'Duomenys apie kandidatą'!D53)","v":""},{"$nulls":6},{"$f":"IF('Duomenys apie kandidatą'!L53=\"\",\"\",'Duomenys apie kandidatą'!L53)","v":""},{"$f":"IF('Duomenys apie kandidatą'!M53=\"\",\"\",'Duomenys apie kandidatą'!M53)","v":""}]
[{"$f":"IF('Duomenys apie kandidatą'!A54=\"\",\"\",'Duomenys apie kandidatą'!A54)","v":""},{"$f":"IF('Duomenys apie kandidatą'!B54=\"\",\"\",'Duomenys apie kandidatą'!B54)","v":""},{"$f":"IF('Duomenys apie kandidatą'!C54=\"\",\"\",'Duomenys apie kandidatą'!C54)","v":""},{"$f":"IF('Duomenys apie kandidatą'!D54=\"\",\"\",'Duomenys apie kandidatą'!D54)","v":""},{"$nulls":6},{"$f":"IF('Duomenys apie kandidatą'!L54=\"\",\"\",'Duomenys apie kandidatą'!L54)","v":""},{"$f":"IF('Duomenys apie kandidatą'!M54=\"\",\"\",'Duomenys apie kandidatą'!M54)","v":""}]
[{"$f":"IF('Duomenys apie kandidatą'!A55=\"\",\"\",'Duomenys apie kandidatą'!A55)","v":""},{"$f":"IF('Duomenys apie kandidatą'!B55=\"\",\"\",'Duomenys apie kandidatą'!B55)","v":""},{"$f":"IF('Duomenys apie kandidatą'!C55=\"\",\"\",'Duomenys apie kandidatą'!C55)","v":""},{"$f":"IF('Duomenys apie kandidatą'!D55=\"\",\"\",'Duomenys apie kandidatą'!D55)","v":""},{"$nulls":6},{"$f":"IF('Duomenys apie kandidatą'!L55=\"\",\"\",'Duomenys apie kandidatą'!L55)","v":""},{"$f":"IF('Duomenys apie kandidatą'!M55=\"\",\"\",'Duomenys apie kandidatą'!M55)","v":""}]
[{"$f":"IF('Duomenys apie kandidatą'!A56=\"\",\"\",'Duomenys apie kandidatą'!A56)","v":""},{"$f":"IF('Duomenys apie kandidatą'!B56=\"\",\"\",'Duomenys apie kandidatą'!B56)","v":""},{"$f":"IF('Duomenys apie kandidatą'!C56=\"\",\"\",'Duomenys apie kandidatą'!C56)","v":""},{"$f":"IF('Duomenys apie kandidatą'!D56=\"\",\"\",'Duomenys apie kandidatą'!D56)","v":""},{"$nulls":6},{"$f":"IF('Duomenys apie kandidatą'!L56=\"\",\"\",'Duomenys apie kandidatą'!L56)","v":""},{"$f":"IF('Duomenys apie kandidatą'!M56=\"\",\"\",'Duomenys apie kandidatą'!M56)","v":""}]
[{"$f":"IF('Duomenys apie kandidatą'!A57=\"\",\"\",'Duomenys apie kandidatą'!A57)","v":""},{"$f":"IF('Duomenys apie kandidatą'!B57=\"\",\"\",'Duomenys apie kandidatą'!B57)","v":""},{"$f":"IF('Duomenys apie kandidatą'!C57=\"\",\"\",'Duomenys apie kandidatą'!C57)","v":""},{"$f":"IF('Duomenys apie kandidatą'!D57=\"\",\"\",'Duomenys apie kandidatą'!D57)","v":""},{"$nulls":6},{"$f":"IF('Duomenys apie kandidatą'!L57=\"\",\"\",'Duomenys apie kandidatą'!L57)","v":""},{"$f":"IF('Duomenys apie kandidatą'!M57=\"\",\"\",'Duomenys apie kandidatą'!M57)","v":""}]
[{"$f":"IF('Duomenys apie kandidatą'!A58=\"\",\"\",'Duomenys apie kandidatą'!A58)","v":""},{"$f":"IF('Duomenys apie kandidatą'!B58=\"\",\"\",'Duomenys apie kandidatą'!B58)","v":""},{"$f":"IF('Duomenys apie kandidatą'!C58=\"\",\"\",'Duomenys apie kandidatą'!C58)","v":""},{"$f":"IF('Duomenys apie kandidatą'!D58=\"\",\"\",'Duomenys apie kandidatą'!D58)","v":""},{"$nulls":6},{"$f":"IF('Duomenys apie kandidatą'!L58=\"\",\"\",'Duomenys apie kandidatą'!L58)","v":""},{"$f":"IF('Duomenys apie kandidatą'!M58=\"\",\"\",'Duomenys apie kandidatą'!M58)","v":""}]
[{"$f":"IF('Duomenys apie kandidatą'!A59=\"\",\"\",'Duomenys apie kandidatą'!A59)","v":""},{"$f":"IF('Duomenys apie kandidatą'!B59=\"\",\"\",'Duomenys apie kandidatą'!B59)","v":""},{"$f":"IF('Duomenys apie kandidatą'!C59=\"\",\"\",'Duomenys apie kandidatą'!C59)","v":""},{"$f":"IF('Duomenys apie kandidatą'!D59=\"\",\"\",'Duomenys apie kandidatą'!D59)","v":""},{"$nulls":6},{"$f":"IF('Duomenys apie kandidatą'!L59=\"\",\"\",'Duomenys apie kandidatą'!L59)","v":""},{"$f":"IF('Duomenys apie kandidatą'!M59=\"\",\"\",'Duomenys apie kandidatą'!M59)","v":""}]